Cogmind - Beta 11 X8 --- EXPLORER MODE // 2021.10.26 @ 13:22:20 // Winter2019/RPGLIKE Player: jfk Result: Destroyed by G-47 Trooper with Particle Gun Performance ------------- Evolutions (3) 1500 Regions Visited (11) 2200 Robots Destroyed (103) 515 Value Destroyed (4954) 4954 Prototype IDs (36) 720 Alien Tech Used (0) 0 Bonus (2137) 2137 TOTAL SCORE: 12026 Bonus ------- Pacifist 200 High Alert Combat Kills 674 Follower Combat Kills 63 Entered Garrisons 400 Used RIF Installer 500 Aligned with FarCom 300 Cogmind --------- Core Integrity 0/1000 Matter 280/300 Energy 900/900 System Corruption 1% Temperature Cool (45) Movement Flying (50) Location -7/Garrison Parts ------- > --- POWER (2) -------- F-cell Engine F-cell Engine > --- PROPULSION (4) --- Flying Fortress v7 > --- UTILITY (9) ------ Advanced Visual Processing Unit System Shield Relay Coupler [NC] (84) Relay Coupler [Swarmer] (124) Relay Coupler [Sentry] (56) Relay Coupler [Hunter] (26) Relay Coupler [Hunter] (28) Skeleton Box > --- WEAPON (3) ------- Gatling Laser Gatling Laser Remote Datajack > --- INVENTORY (6) ---- Advanced Weight Redist. System Relay Coupler [Swarmer] (104) Gatling Laser Improved Spread Laser Rocket Launcher Peak State ------------ > --- POWER ------------ F-cell Engine F-cell Engine > --- PROPULSION ------- Flying Fortress v7 > --- UTILITY ---------- Advanced Visual Processing Unit System Shield Relay Coupler [NC] Relay Coupler [Swarmer] Relay Coupler [Sentry] Relay Coupler [Hunter] Relay Coupler [Hunter] Skeleton Box > --- WEAPON ----------- Gatling Laser Heavy Proton Cannon Remote Datajack > --- INVENTORY -------- Protomatter Advanced Weight Redist. System Relay Coupler [Swarmer] Gatling Laser Improved Spread Laser Rocket Launcher [Rating: 90] Favorites ----------- Power Nuclear Core Engine Light Deuterium Engine Power Core Nuclear Core Propulsion Flying Fortress v7 Hover Unit Hover Unit Flight Unit Flying Fortress v7 Utility Skeleton Box Device Skeleton Box Processor Advanced Visual Processing Unit Hackware Relay Coupler [Hunter] Protection Hardened Light Armor Plating Weapon Gatling Laser Energy Gun Gatling Laser Energy Cannon Heavy Particle Cannon Ballistic Gun AWS/Gauss Special Weapon Remote Datajack Build | -11 -10 -10 -9 -9 -9 -8 -8 -8 -8 -7 -7 ------- Run | Scr Mat Min Mat Min Exi Min Mat Gar Mat Fac Gar Slots Evolved 14 | . . . . 1 9 . . 1 1 2 . Power 1 | . . . . . 1 . . . . . . Propulsion 3 | . . . . . 3 . . . . . . Utility 8 | . . . . 1 4 . . . 1 2 . Weapon 2 | . . . . . 1 . . 1 . . . Parts Attached 38 | . 1 . 3 1 3 1 4 5 1 18 1 Power 5 | . . . . . . . 2 . . 3 . Engine 4 | . . . . . . . 1 . . 3 . Core 1 | . . . . . . . 1 . . . . Reactor . | . . . . . . . . . . . . Propulsion 3 | . . . 2 . 1 . . . . . . Treads . | . . . . . . . . . . . . Leg . | . . . . . . . . . . . . Wheel . | . . . . . . . . . . . . Hover 1 | . . . 1 . . . . . . . . Flight 2 | . . . 1 . 1 . . . . . . Utility 13 | . 1 . . 1 1 1 2 4 1 2 . Device 4 | . . . . 1 1 . 2 . . . . Storage . | . . . . . . . . . . . . Processor 2 | . 1 . . . . . . . . 1 . Hackware 6 | . . . . . . . . 4 1 1 . Protection 1 | . . . . . . 1 . . . . . Artifact . | . . . . . . . . . . . . Weapon 17 | . . . 1 . 1 . . 1 . 13 1 Energy Gun 10 | . . . . . . . . . . 9 1 Energy Cannon 3 | . . . 1 . . . . 1 . 1 . Ballistic Gun 3 | . . . . . 1 . . . . 2 . Ballistic Cannon . | . . . . . . . . . . . . Launcher . | . . . . . . . . . . . . Special Weapon 1 | . . . . . . . . . . 1 . Impact Weapon . | . . . . . . . . . . . . Slashing Weapon . | . . . . . . . . . . . . Piercing Weapon . | . . . . . . . . . . . . Special Melee Weapon . | . . . . . . . . . . . . Unidentified Prototypes 7 | . . . . 1 . . . . . 6 . Parts Lost 1 | . . . . . . . . . . 1 . Power . | . . . . . . . . . . . . Propulsion . | . . . . . . . . . . . . Utility 1 | . . . . . . . . . . 1 . Weapon . | . . . . . . . . . . . . Highest Loss Streak 1 | . . . . . . . . . . 1 . Average Slot Usage (%) 61 | . 21 25 53 49 27 23 48 63 74 78 77 Engine 4 | . . . . . . . 6 6 6 5 11 Core 3 | . . . . . . . 6 6 6 5 . Hover 2 | . . . 3 21 7 . . . . . . Flight 4 | . . . 14 . 4 7 7 6 6 5 5 Device 5 | . . . . . 4 7 14 11 6 5 5 Processor 3 | . 21 25 25 6 . . . . . . 5 Hackware 18 | . . . . . . . . 12 30 30 33 Protection 3 | . . . . . . 2 7 6 6 5 . Energy Gun 5 | . . . . . . . . . . 12 11 Energy Cannon 4 | . . . 10 21 7 . . 4 6 1 . Ballistic Gun 3 | . . . . . 4 7 7 6 6 2 . Naked Turns 18 | . 18 . . . . . . . . . . Heaviest Build 37 | . . . 6 6 12 17 31 37 35 37 37 Greatest Support 50 | 3 3 3 6 6 50 50 50 50 50 50 50 Greatest Overweight (x) 11 | . . . 1 . 1 . . . 11 . . Average Overweight (x) . | . . . . . . . . . . . . Largest Inventory Capacity 6 | . . . . 1 4 4 4 4 4 6 6 Average Capacity 4 | . . . . . 2 4 4 4 4 5 6 Most Carried 6 | . . . . 1 2 2 4 4 4 6 6 Average Carried 3 | . . . . . 1 2 2 3 4 5 5 Final Capacity 6 | . . . . 1 4 4 4 4 4 6 6 Final Carried 5 | . . . . 1 2 2 4 4 4 5 5 Class Distribution -------------------- 40% | Hacker-Mutant 28% | Bothacker-Gunner 16% | Hacker-Skirmisher 9% | Bothacker-Mutant 4% | Hacker-Gunner Dominant Class ---------------- Hacker-Mutant | -10/Materials Hacker-Mutant | -10/Mines Hacker-Mutant | -9/Materials Hacker-Mutant | -9/Mines Hacker-Mutant | -9/Exiles Hacker-Mutant | -8/Mines Hacker-Mutant | -8/Materials Hacker-Skirmisher | -8/Garrison Hacker-Skirmisher | -8/Materials Bothacker-Gunner | -7/Factory Bothacker-Mutant | -7/Garrison Resources | -11 -10 -10 -9 -9 -9 -8 -8 -8 -8 -7 -7 ----------- Run | Scr Mat Min Mat Min Exi Min Mat Gar Mat Fac Gar Matter Collected 649 | . . 192 31 10 . 40 40 50 10 266 10 Remotely . | . . . . . . . . . . . . Salvage Created 4198 | . . . . 130 . . 532 522 765 1813 436 Parts 206 | . . . . 6 . . 31 35 40 83 11 Haulers Intercepted 4 | . . . . . . . . . . 4 . Recyclers Shooed . | . . . . . . . . . . . . Parts Field Recycled . | . . . . . . . . . . . . Retrieved Matter . | . . . . . . . . . . . . Parts Self-Destructed . | . . . . . . . . . . . . Prevented . | . . . . . . . . . . . . Kills | -11 -10 -10 -9 -9 -9 -8 -8 -8 -8 -7 -7 ------- Run | Scr Mat Min Mat Min Exi Min Mat Gar Mat Fac Gar Combat Hostiles Destroyed 91 | . . . . 2 . . 8 20 11 37 13 Guns 77 | . . . . . . . 8 20 9 30 10 Cannons 8 | . . . . 2 . . . . 2 4 . AOE 1 | . . . . . . . . . . 1 . Classes Destroyed 13 | . . . . 2 . . 3 4 1 3 . Builder 3 | . . . . . . . 1 . 1 1 . Hauler 4 | . . . . . . . . . . 4 . Watcher 5 | . . . . . . . 3 . 2 . . Swarmer 18 | . . . . . . . . 9 . 7 2 Grunt 37 | . . . . 1 . . 6 6 4 13 7 Brawler 5 | . . . . 1 . . . 1 . 2 1 Duelist 5 | . . . . . . . . 1 1 3 . Protector 1 | . . . . . . . . 1 . . . Sentry 15 | . . . . . . . 2 1 5 4 3 Demolisher 1 | . . . . . . . . 1 . . . Specialist 1 | . . . . . . . . . . 1 . Hunter 2 | . . . . . . . . . 1 1 . Programmer 6 | . . . . . . . . . . 6 . Best Kill Streak 9 | . . . . 2 . . 9 8 8 6 6 Combat Bots Only 8 | . . . . 2 . . 7 8 7 6 6 Max Kills in Single Turn 2 | . . . . 1 . . 1 1 1 2 1 Gunslinging . | . . . . . . . . . . . . Exploded 1 | . . . . . . . . . . 1 . Melee . | . . . . . . . . . . . . Uniques/NPCs Destroyed . | . . . . . . . . . . . . Combat | -11 -10 -10 -9 -9 -9 -8 -8 -8 -8 -7 -7 -------- Run | Scr Mat Min Mat Min Exi Min Mat Gar Mat Fac Gar Damage Taken 3201 | . 13 84 70 13 . . 102 206 113 1936 664 Core 2416 | . 12 83 69 11 . . 64 134 91 1443 509 Absorbed by Shields 111 | . . . . . . . . . . . 111 Redirected to Core 1677 | . 2 4 2 4 . . 53 93 60 1083 376 Core Remaining (%) 92 | 100 . 84 . . . 87 . . 99 . . Volleys Fired 129 | . . . . 10 . . . 10 6 78 25 Largest 3 | . . . . 1 . . . 1 1 3 2 Hottest 235 | . . . . 75 . . . 75 75 235 160 Shots Fired 393 | . . . . 10 . . 41 59 41 196 46 Gun 337 | . . . . . . . 41 49 35 170 42 Cannon 49 | . . . . 10 . . . 10 6 23 . Launcher . | . . . . . . . . . . . . Special 7 | . . . . . . . . . . 3 4 Kinetic 162 | . . . . . . . 41 49 35 37 . Thermal 224 | . . . . 10 . . . 10 6 156 42 Explosive . | . . . . . . . . . . . . Electromagnetic . | . . . . . . . . . . . . Robot Hit Streak 104 | . . . . 2 . . 22 44 47 100 104 Robot Miss Streak 2 | . . . . 1 . . 1 1 1 2 1 Penetration Max . | . . . . . . . . . . . . Secondary Targets 1 | . . . . . . . . . . 1 . Max Gunslinging Chain 1 | . . . . . . . . . . 1 . Autonomous 144 | . . . . . . . 41 49 35 19 . Shots Hit Robots 362 | . . . . 4 . . 40 52 36 185 45 Core Hits 253 | . . 1 . 2 . . 15 25 19 153 38 Critical Kills 1 | . . . . . . . 1 . . . . Critical Parts Destroyed 2 | . . . . . . . . . 2 . . Critical Strikes 3 | . . . . . . . 1 . 2 . . Destroy 3 | . . . . . . . 1 . 2 . . Melee Attacks . | . . . . . . . . . . . . Impact . | . . . . . . . . . . . . Slashing . | . . . . . . . . . . . . Piercing . | . . . . . . . . . . . . Sneak Attacks . | . . . . . . . . . . . . Combat Hostiles . | . . . . . . . . . . . . Follow-up Attacks . | . . . . . . . . . . . . Damage Inflicted 9942 | . 6 13 . 125 . . 1226 1473 952 4929 1218 Guns 9060 | . . . . . . . 1226 1348 852 4416 1218 Cannons 825 | . . . . 125 . . . 125 100 475 . Explosions 38 | . . . . . . . . . . 38 . Melee . | . . . . . . . . . . . . Ramming 19 | . 6 13 . . . . . . . . . Kinetic 4187 | . . . . . . . 1226 1348 852 761 . Thermal 5736 | . . . . 125 . . . 125 100 4168 1218 Explosive . | . . . . . . . . . . . . Electromagnetic . | . . . . . . . . . . . . Impact . | . . . . . . . . . . . . Slashing . | . . . . . . . . . . . . Piercing . | . . . . . . . . . . . . Highest Corruption 1 | . . . . . . . . . . 1 1 Average Corruption 1 | . . . . . . . . . . 1 1 Corruption Purged . | . . . . . . . . . . . . Effects 1 | . . . . . . . . . . 1 . Message Errors 1 | . . . . . . . . . . 1 . Overload Shots . | . . . . . . . . . . . . Overflow Damage . | . . . . . . . . . . . . Projectiles . | . . . . . . . . . . . . Explosions . | . . . . . . . . . . . . Melee . | . . . . . . . . . . . . Knockbacks . | . . . . . . . . . . . . Impact . | . . . . . . . . . . . . Kinetic . | . . . . . . . . . . . . Secondary . | . . . . . . . . . . . . Self-Inflicted Damage 184 | . 3 5 . . . . . . . 176 . Shots 3 | . . . . . . . . . . 3 . Rammed 4 | . 1 3 . . . . . . . . . Targets Rammed 4 | . 1 3 . . . . . . . . . Kicked . | . . . . . . . . . . . . Crushed . | . . . . . . . . . . . . Highest Temperature 150 | . . . . 111 . . 36 14 23 150 20 Average Temperature 37 | . . . . 42 . . 18 8 13 46 11 Received Heat Transfer 1072 | . 9 . . 12 . . 81 72 99 324 475 Siege Activations . | . . . . . . . . . . . . Robots Corrupted . | . . . . . . . . . . . . Combat Hostiles . | . . . . . . . . . . . . Parts Fried . | . . . . . . . . . . . . Impact Corruptions . | . . . . . . . . . . . . Robots Melted 5 | . . . . . . . . . . 2 3 Combat Hostiles 5 | . . . . . . . . . . 2 3 Parts Melted 22 | . . . . . . . 1 . . 11 10 Heat Transferred 10303 | . . . . 185 . . . 158 148 7062 2750 Parts Sabotaged . | . . . . . . . . . . . . Parts Stolen . | . . . . . . . . . . . . Parts Stripped . | . . . . . . . . . . . . Power Chain Reactions . | . . . . . . . . . . . . Missiles Intercepted . | . . . . . . . . . . . . Alert | -11 -10 -10 -9 -9 -9 -8 -8 -8 -8 -7 -7 ------- Run | Scr Mat Min Mat Min Exi Min Mat Gar Mat Fac Gar Peak Influence 775 | . 96 71 214 110 . . 333 775 676 769 651 Initial 371 | . . 26 19 58 . . . 164 276 222 371 Average 358 | . 42 53 125 66 . . 100 489 416 516 522 Maximum Alert Level 3 | . . . 1 . . . 1 3 2 3 2 Low Security (%) 31 | 100 100 100 60 100 . 100 88 14 . . . Level 1 15 | . . . 39 . . . 11 17 59 13 19 Level 2 48 | . . . . . . . . 56 40 81 80 Level 3 3 | . . . . . . . . 12 . 4 . Level 4 . | . . . . . . . . . . . . Level 5 . | . . . . . . . . . . . . High Security . | . . . . . . . . . . . . Max Security . | . . . . . . . . . . . . Squads Dispatched 11 | . . . . . . . 3 . . 8 . Investigation 2 | . . . . . . . . . . 2 . Extermination 3 | . . . . . . . . . . 3 . Reinforcement 3 | . . . . . . . 2 . . 1 . Assault . | . . . . . . . . . . . . Garrison 3 | . . . . . . . 1 . . 2 . Intercept . | . . . . . . . . . . . . Construction Impeded . | . . . . . . . . . . . . Haulers Reinforced . | . . . . . . . . . . . . Active Scanning Responses . | . . . . . . . . . . . . Cargo Convoy Interrupts 1 | . . . . . . . . . . 1 . Stealth | -11 -10 -10 -9 -9 -9 -8 -8 -8 -8 -7 -7 --------- Run | Scr Mat Min Mat Min Exi Min Mat Gar Mat Fac Gar Distress Signals 3 | . . . 1 . . . 1 . . 1 . Communications Jammed . | . . . . . . . . . . . . Distress Signals . | . . . . . . . . . . . . Times Spotted 158 | . 5 9 9 2 . . 14 21 11 66 21 Peak Tracking Total 12 | . 5 11 7 2 . . 3 9 3 12 10 Tactical Retreats 11 | . 1 2 1 . . . . . . 6 1 Traps | -11 -10 -10 -9 -9 -9 -8 -8 -8 -8 -7 -7 ------- Run | Scr Mat Min Mat Min Exi Min Mat Gar Mat Fac Gar Traps Triggered 10 | . . . . . . . . 5 1 . 4 Indirectly . | . . . . . . . . . . . . Trap Hack Attempts . | . . . . . . . . . . . . Triggered . | . . . . . . . . . . . . Disarmed . | . . . . . . . . . . . . Reprogrammed . | . . . . . . . . . . . . Reused . | . . . . . . . . . . . . Traps Extracted . | . . . . . . . . . . . . Installed . | . . . . . . . . . . . . Triggered . | . . . . . . . . . . . . Machines | -11 -10 -10 -9 -9 -9 -8 -8 -8 -8 -7 -7 ---------- Run | Scr Mat Min Mat Min Exi Min Mat Gar Mat Fac Gar Machines Disabled 15 | . . . . . . . 1 5 . 9 . Max in Single Turn 7 | . . . . . . . 1 1 . 7 . Garrison Relay 4 | . . . . . . . . 4 . . . Machines Sabotaged . | . . . . . . . . . . . . Garrisons Compromised . | . . . . . . . . . . . . Overloaded Fab Kills . | . . . . . . . . . . . . Hacking | -11 -10 -10 -9 -9 -9 -8 -8 -8 -8 -7 -7 --------- Run | Scr Mat Min Mat Min Exi Min Mat Gar Mat Fac Gar Machines Accessed 22 | . 1 . 1 1 1 . 1 . 2 15 . Terminals 14 | . 1 . 1 . . . . . 2 10 . Fabricators 3 | . . . . . . . . . . 3 . Repair Stations . | . . . . . . . . . . . . Recycling Units . | . . . . . . . . . . . . Scanalyzers . | . . . . . . . . . . . . Garrison Access 3 | . . . . . . . 1 . . 2 . Total Hacks 40 | . 3 . 3 1 1 . 1 . 2 29 . Successful 27 | . 2 . 2 1 1 . 1 . 2 18 . Failed 13 | . 1 . 1 . . . . . . 11 . Catastrophic 2 | . 1 . . . . . . . . 1 . Database Lockouts . | . . . . . . . . . . . . Manual 22 | . 2 . 3 . 1 . . . . 16 . Terminals 31 | . 3 . 3 . . . . . 2 23 . Fabricators 4 | . . . . . . . . . . 4 . Repair Stations . | . . . . . . . . . . . . Recycling Units . | . . . . . . . . . . . . Scanalyzers . | . . . . . . . . . . . . Garrison Access 3 | . . . . . . . 1 . . 2 . Terminal Hacks 15 | . 2 . 2 1 1 . . . 2 7 . Record 3 | . 1 . . . . . . . 1 1 . Prototype ID Bank 2 | . . . . . . . . . . 2 . Open Door 1 | . . . . 1 . . . . . . . Open DSF 1 | . . . . . . . . . . 1 . Level Access Points 1 | . . . . . . . . . 1 . . Branch Access Points 3 | . 1 . 2 . . . . . . . . Terminal Index 1 | . . . . . . . . . . 1 . Hauler Manifests 1 | . . . . . . . . . . 1 . Registered Prototypes 1 | . . . . . . . . . . 1 . EX-Prototype ID Bank 1 | . . . . . 1 . . . . . . Fabricator Hacks 2 | . . . . . . . . . . 2 . Network Status 2 | . . . . . . . . . . 2 . Repair Station Hacks . | . . . . . . . . . . . . Recycling Unit Hacks . | . . . . . . . . . . . . Scanalyzer . | . . . . . . . . . . . . Garrison Access Hacks 2 | . . . . . . . 1 . . 1 . Unlock Access 2 | . . . . . . . 1 . . 1 . Unauthorized Hacks 8 | . . . . . . . . . . 8 . Terminals 7 | . . . . . . . . . . 7 . Track 1 | . . . . . . . . . . 1 . Botnet 6 | . . . . . . . . . . 6 . Fabricators . | . . . . . . . . . . . . Repair Stations . | . . . . . . . . . . . . Recycling Units . | . . . . . . . . . . . . Scanalyzers . | . . . . . . . . . . . . Garrison Access 1 | . . . . . . . . . . 1 . Eject 1 | . . . . . . . . . . 1 . Data Cores Recovered . | . . . . . . . . . . . . Used . | . . . . . . . . . . . . Hacking Detections 10 | . 1 . . . . . . . . 9 . Full Trace Events 1 | . . . . . . . . . . 1 . Feedback Events . | . . . . . . . . . . . . Feedback Blocked . | . . . . . . . . . . . . Robot Schematics Acquired . | . . . . . . . . . . . . Robots Built . | . . . . . . . . . . . . Authchips . | . . . . . . . . . . . . Time . | . . . . . . . . . . . . Total Robot Build Rating . | . . . . . . . . . . . . Part Schematics Acquired . | . . . . . . . . . . . . Parts Built . | . . . . . . . . . . . . Authchips . | . . . . . . . . . . . . Time . | . . . . . . . . . . . . Total Part Build Rating . | . . . . . . . . . . . . Parts Repaired . | . . . . . . . . . . . . Time . | . . . . . . . . . . . . Parts Recycled . | . . . . . . . . . . . . Recycled Matter . | . . . . . . . . . . . . Retrieved Matter . | . . . . . . . . . . . . Retrieved Components . | . . . . . . . . . . . . Parts Scanalyzed . | . . . . . . . . . . . . Part Schematics Acquired . | . . . . . . . . . . . . Parts Damaged . | . . . . . . . . . . . . Bothacking | -11 -10 -10 -9 -9 -9 -8 -8 -8 -8 -7 -7 ------------ Run | Scr Mat Min Mat Min Exi Min Mat Gar Mat Fac Gar Used RIF Installer 1 | . . . . . . . . 1 . . . Robots Hacked 4 | . . . . . . . . . . 2 2 Non-combat . | . . . . . . . . . . . . Combat 4 | . . . . . . . . . . 2 2 Robot Hacks Applied 4 | . . . . . . . . . . 2 2 overwrite_iff 4 | . . . . . . . . . . 2 2 Relay Couplers Released 8 | . . . . . . . . 7 . 1 . Ejected 1 | . . . . . . . . . . 1 . Machine Destruction 7 | . . . . . . . . 7 . . . Attached 5 | . . . . . . . . 4 . 1 . Robots Rewired . | . . . . . . . . . . . . Allies Hacked . | . . . . . . . . . . . . Hacks Repelled . | . . . . . . . . . . . . Allies | -11 -10 -10 -9 -9 -9 -8 -8 -8 -8 -7 -7 -------- Run | Scr Mat Min Mat Min Exi Min Mat Gar Mat Fac Gar Total Allies 7 | . . 3 . . . . . . . 2 2 Largest Group 3 | . . 3 3 3 3 3 3 3 2 2 . Highest-Rated Group 42 | . . 40 40 40 40 40 40 40 24 42 . Highest-Rated Ally 21 | . . 16 16 16 16 16 16 16 16 21 . Total Orders . | . . . . . . . . . . . . Ally Attacks 48 | . . 4 15 1 . . 12 7 3 5 1 Total Damage 571 | . . 39 110 . . . 124 29 36 171 62 Kills 8 | . . 1 6 . . . 1 . . . . Allies Corrupted . | . . . . . . . . . . . . Allies Melted . | . . . . . . . . . . . . Intel | -11 -10 -10 -9 -9 -9 -8 -8 -8 -8 -7 -7 ------- Run | Scr Mat Min Mat Min Exi Min Mat Gar Mat Fac Gar Robot Analysis Total . | . . . . . . . . . . . . Derelict Logs Recovered 1 | . . . . 1 . . . . . . . Drone Launches . | . . . . . . . . . . . . Drone Recoveries . | . . . . . . . . . . . . Exploration | -11 -10 -10 -9 -9 -9 -8 -8 -8 -8 -7 -7 ------------- Run | Scr Mat Min Mat Min Exi Min Mat Gar Mat Fac Gar Turns Passed 3921 | 10 88 238 71 362 174 274 134 434 358 1574 204 Spaces Moved 5936 | 19 171 431 106 501 219 449 221 615 519 2505 180 Core 679 | 19 171 431 43 . 1 . . . 14 . . Treads . | . . . . . . . . . . . . Legs . | . . . . . . . . . . . . Wheels . | . . . . . . . . . . . . Hover 626 | . . . 15 501 110 . . . . . . Flight 4631 | . . . 48 . 108 449 221 615 505 2505 180 Fastest Speed 40 | 50 50 50 40 60 50 50 50 50 50 50 50 Average Speed 52 | 50 50 50 57 60 55 50 50 50 64 50 50 Slowest Speed 600 | 50 50 50 120 60 100 50 50 50 600 50 50 Overloaded Moves . | . . . . . . . . . . . . Propulsion Burnouts . | . . . . . . . . . . . . Robots Hopped 18 | . . . . . . 3 4 . 2 9 . Cave-ins Triggered . | . . . . . . . . . . . . Exploration Rate (%) 52 | 3 41 92 14 91 60 91 20 74 58 55 34 Regions Visited 11 Branch Regions 4 Pre-discovered Areas . | . . . . . . . . . . . . Known Exits Taken 10 | 1 1 1 1 1 1 1 1 . 1 1 . Unknown Exits Taken . | . . . . . . . . . . . . Scrap Searched 2 | . . . . . . 2 . . . . . Spaces Dug 3 | . . . . 3 . . . . . . . Terrain Destroyed 128 | . . . . 5 . . 26 . 18 79 . Melee . | . . . . . . . . . . . . Projectile 51 | . . . . 5 . . 26 . 18 2 . AOE 77 | . . . . . . . . . . 77 . Terrain Rammed . | . . . . . . . . . . . . Walls Destroyed . | . . . . . . . . . . . . Machines Disabled . | . . . . . . . . . . . . Actions | -11 -10 -10 -9 -9 -9 -8 -8 -8 -8 -7 -7 --------- Run | Scr Mat Min Mat Min Exi Min Mat Gar Mat Fac Gar Total 6461 | 18 172 452 114 552 270 494 237 731 531 2647 243 Wait 223 | . . 19 . 38 46 48 15 51 1 1 4 Move 5889 | 18 170 430 105 500 218 442 212 613 514 2487 180 Hop 18 | . . . . . . 3 4 . 2 9 . Pick Up 15 | . . . . 1 1 . 2 4 . 6 1 Fast Attach 32 | . 1 . 3 1 3 1 4 3 1 15 . Attach 4 | . . . . . . . . 2 . 2 . Detach 2 | . . . . 1 . . . 1 . . . Swap 2 | . . . . . . . . . . 1 1 Drop 27 | . . . 1 1 2 . . 4 . 17 2 Fire 129 | . . . . 10 . . . 10 6 78 25 Melee . | . . . . . . . . . . . . Ram 4 | . 1 3 . . . . . . . . . Kick . | . . . . . . . . . . . . Crush . | . . . . . . . . . . . . Escape Stasis 42 | . . . . . . . . 26 . . 16 Rewire . | . . . . . . . . . . . . Trap . | . . . . . . . . . . . . Miscellaneous 74 | . . . 5 . . . . 17 7 31 14 Route ------- -11/Scrapyard -10/Materials -10/Mines (discovered 2 exits: *Mat x2) -9/Materials (discovered 4 exits: *Min x2 / Sto x2) -9/Mines (discovered 4 exits: *Mat x2 / *Exi / [*Zio]) -9/Exiles -8/Mines (discovered 2 exits: *Mat x2) -8/Materials -8/Garrison (discovered 3 exits: *Mat x3) -8/Materials (discovered 3 exits: *Fac x3) -7/Factory (discovered 6 exits: *Fac x3 / *Low x2 / Gar) -7/Garrison History --------- Turn | Location | Event 2 | -11/Scrapyard | Identified exit to Materials 2 | -11/Scrapyard | Discovered exit to Materials (range 16) 11 | -11/Scrapyard | Entered Materials 60 | -10/Materials | Identified exit to Mines 99 | -10/Materials | Entered Mines 102 | -10/Mines | Assisted by bots powering up and referring to "LRC-V3" 153 | -10/Mines | Assembled infested the area 280 | -10/Mines | Identified exit to Materials 280 | -10/Mines | Discovered exit to Materials (range 7) 311 | -10/Mines | Discovered exit to Materials (range 15) 316 | -10/Mines | Build established: Hacker-Mutant 337 | -10/Mines | Entered Materials 337 | -9/Materials | Accompanied by 3 allies 339 | -9/Materials | Reached level 2 339 | -9/Materials | Reached level 3 341 | -9/Materials | Identified exit to Mines 341 | -9/Materials | Identified exit to Storage 370 | -9/Materials | Reached level 4 408 | -9/Materials | Entered Mines 408 | -9/Mines | Accompanied by 3 allies 426 | -9/Mines | Received a Rocket Launcher from a helpful Derelict 440 | -9/Mines | Met a Derelict bent on vengeance 474 | -9/Mines | Found a hidden stash of uninstalled traps 495 | -9/Mines | Learned Materials terminal intel 504 | -9/Mines | Found the Drone Emporium 507 | -9/Mines | Upgraded with Utility slot (x1) 507 | -9/Mines | Found Prototype Device 507 | -9/Mines | Identified Decoy Drone Bay 571 | -9/Mines | Identified exit to Materials 571 | -9/Mines | Discovered exit to Materials (range 7) 593 | -9/Mines | A Derelict revealed a hidden shortcut to a safe place 598 | -9/Mines | Discovered exit to Materials (range 12) 739 | -9/Mines | Deemed a non-threat by the Exiles lab entrance 739 | -9/Mines | Identified exit to Exiles 739 | -9/Mines | Discovered exit to Exiles (range 5) 770 | -9/Mines | Entered Exiles 770 | -9/Exiles | Accompanied by 3 allies 772 | -9/Exiles | Reached level 5 785 | -9/Exiles | Met 8R-AWN 796 | -9/Exiles | Met EX-HEX 812 | -9/Exiles | Met EX-BIN 819 | -9/Exiles | Aligned with FarCom system 820 | -9/Exiles | Given EX-Vault access code 834 | -9/Exiles | Opened EX-Vault 837 | -9/Exiles | Upgraded with Propulsion slot (x3) 838 | -9/Exiles | Found Flying Fortress v7 841 | -9/Exiles | Found Skeleton Box 845 | -9/Exiles | Upgraded with Power slot (x1) 845 | -9/Exiles | Upgraded with Utility slot (x4) 845 | -9/Exiles | Upgraded with Weapon slot (x1) 846 | -9/Exiles | Found AWS/Gauss 861 | -9/Exiles | Warned to stay clear of 0b10 Research branches 875 | -9/Exiles | Met EX-DEC 892 | -9/Exiles | Identified exit to Mines 892 | -9/Exiles | Discovered exit to Mines (range 14) 944 | -9/Exiles | Stole three prototypes: Flying Fortress v7, Skeleton Box, AWS/Gauss 944 | -9/Exiles | Entered Mines 944 | -8/Mines | Accompanied by 3 allies 969 | -8/Mines | Discovered exit to Materials (range 9) 1097 | -8/Mines | Discovered exit to Materials (range 9) 1218 | -8/Mines | Entered Materials 1218 | -8/Materials | Accompanied by 3 allies 1219 | -8/Materials | Loaded intel: 12 terminal locations 1220 | -8/Materials | Reached level 6 1220 | -8/Materials | Reached level 7 1326 | -8/Materials | Garrison activated, responded to threat 1339 | -8/Materials | Reached level 8 1345 | -8/Materials | Identified exit to Garrison 1352 | -8/Materials | Entered Garrison 1352 | -8/Garrison | Accompanied by 3 allies 1364 | -8/Garrison | Destroyed 7 combat bots 1409 | -8/Garrison | Triggered checkpoint 1420 | -8/Garrison | Reached level 9 1444 | -8/Garrison | Identified exit to Materials 1444 | -8/Garrison | Discovered exit to Materials (range 12) 1446 | -8/Garrison | Destroyed 8 combat bots 1470 | -8/Garrison | Triggered checkpoint 1478 | -8/Garrison | Discovered exit to Materials (range 10) 1487 | -8/Garrison | Installed Relay Interface Framework 1493 | -8/Garrison | Upgraded with Weapon slot (x1) 1512 | -8/Garrison | Triggered checkpoint 1515 | -8/Garrison | Garrison Relay disabled 1554 | -8/Garrison | Triggered checkpoint 1574 | -8/Garrison | Triggered checkpoint 1580 | -8/Garrison | Reached level 10 1585 | -8/Garrison | Garrison Relay disabled 1608 | -8/Garrison | Discovered exit to Materials (range 14) 1658 | -8/Garrison | Triggered checkpoint 1669 | -8/Garrison | Garrison Relay disabled 1722 | -8/Garrison | Triggered checkpoint 1736 | -8/Garrison | Garrison Relay disabled 1786 | -8/Garrison | Entered Materials 1786 | -8/Materials | Accompanied by 2 allies 1795 | -8/Materials | Identified exit to Factory 1807 | -8/Materials | Build established: Hacker-Skirmisher 1820 | -8/Materials | Upgraded with Utility slot (x1) 1998 | -8/Materials | Reached level 11 2116 | -8/Materials | Destroyed 7 combat bots 2144 | -8/Materials | Entered Factory 2146 | -7/Factory | FarCom data flow suspended 2146 | -7/Factory | Reached level 12 2209 | -7/Factory | Reached level 13 2310 | -7/Factory | Identified exit to Factory 2310 | -7/Factory | Discovered exit to Factory (range 3) 2621 | -7/Factory | Reached level 14 2723 | -7/Factory | Build established: Bothacker-Gunner 2820 | -7/Factory | Identified exit to Lower Caves 2820 | -7/Factory | Discovered exit to Lower Caves (range 5) 2850 | -7/Factory | Discovered exit to Factory (range 11) 2943 | -7/Factory | Discovered exit to Factory (range 16) 3129 | -7/Factory | Upgraded with Utility slot (x1) 3173 | -7/Factory | Discovered exit to Lower Caves (range 6) 3255 | -7/Factory | Reached level 15 3408 | -7/Factory | Upgraded with Utility slot (x1) 3523 | -7/Factory | Garrison activated, responded to threat 3533 | -7/Factory | Cargo convoy interrupted 3550 | -7/Factory | Core integrity fell below 50% 3598 | -7/Factory | Core integrity fell below 20% 3716 | -7/Factory | Identified exit to Garrison 3718 | -7/Factory | Entered Garrison 3752 | -7/Garrison | Triggered checkpoint 3752 | -7/Garrison | Triggered checkpoint 3755 | -7/Garrison | Triggered checkpoint 3828 | -7/Garrison | Reached level 16 3842 | -7/Garrison | Build established: Bothacker-Mutant 3888 | -7/Garrison | Triggered checkpoint 3922 | -7/Garrison | Destroyed by G-47 Trooper with Particle Gun Last Messages --------------- 03888_ Jacked G-47 Trooper... 03890_ G-47 Trooper destroyed. 03894_ Critical hit (Burn: +37). 03898_ B-48 Gladiator overheating. 03899_ B-48 Gladiator heat damages core (-13). 03902_ Triggered Stasis Trap. 03902_ A bubble of rippling energy engulfs the area. 03902_ Field strength at 87. 03902_ Field strength at 71. 03908_ G-47 Trooper overheating. 03910_ G-47 Trooper destroyed. 03910_ Critical hit (Burn: +27). 03914_ Critical hit (Burn: +24). 03917_ Imp. Heat Sink melted. 03917_ G-47 Trooper destroyed. 03918_ Stasis field depleted. 03922_ Jacked Y-54 Guardian... >>overwrite_iff Rewriting IFF filter. 03922_ Critical hit (Burn: +37). Map ----- +----------------------------------------------------+ | ???????????????????????????????????????# ??######? | | ???????????????????????????????????????# ??# #? | | ??????????????????????????????????????##+### ## | | ???????????????????????????????????#### | | ???????????????????????????????????? | | ????????????????????????????????????? | | ??????????????????????????????????????# ## ## | | ????????????????????????????????????### ## ## | | ????????????????????????????????????# ^ | | ????????????????????????????????????# % | | ????????????????????????????????????# | | ????????????????????????????????????? | | ??????????????????????????????????????# ##%* ## | | ????????????????????????###############^ ##%% ## | | ????????????????????????# %[ | | ????????????????????????# | | ????????????????????????# | | ????????????????????????# #### ########### ## | | ????????????????????????# #??# #?????????# [ ## | | ????????????????????????# #??# #?????????####### | | ????????????????????????# #??# #???????????????# | | ????????????????????????# #??# #???????????????# | | ??????????????########### #### #???????????????# | | ?????# #???????????????# | | ??????????????########### ######???????????????# | | ????????????????????????#@ ^#????????????????????# | | ????????????????????????# #????????????????????# | | ????????????????????????# #????????????????????# | | ????????????????????????# g###??????????????????? | | ????????????????????????# #??????????????????? | | ????????????????????????# #??????????????????? | | ????????????????????????# #??????????????????? | | ????????????????????????# ###??????????????????? | | ????????????????????????# #????????????????????? | | ????????????????????????#ggY#????????????????????? | | ????????????????????????# % #????????????????????? | | ????????????????????????#% #????????????????????? | | ???????????????????????? %[+????????????????????? | | ???????????????????????? = +????????????????????? | | ???????????????????????## #????????????????????? | | ????????????????????????# #????????????????????? | | ????????????????????????# #????????????????????? | | ????????????????????????# #????????????????????? | | ????????????????????????# #????????????????????? | | ????????????????????????# #????????????????????? | | ????????????????????????# #????????????????????? | | ????????????????????????# ?????????????????????? | | ?????????????????????????^ ?????????????????????? | | ????????????????????????? ?????????????????????? | | ????????????????????????? ?????????????????????? | +----------------------------------------------------+ Best States ------------- Heat Dissipation 85 Energy Generation 33 Energy Capacity 900 Matter Stores 300 Matter Capacity 300 Sight Range 20 Terrain Scan Density 10 Armor Coverage 150 Resistance: KI 35 Resistance: TH 35 Resistance: EX 35 Resistance: EM 35 Resistance: I 35 Resistance: S 35 Resistance: P 35 Evasion (%) 62 Offensive Hacking 20 Defensive Hacking 10 Relay Coupler Types 4 Relay Coupler Value 332 Item Schematics ----------------- None Robot Schematics ------------------ None Fabricated ------------ Nothing Alien Tech Used ----------------- None Achievements -------------- None Challenges ------------ None RPGLIKE | -11 -10 -10 -9 -9 -9 -8 -8 -8 -8 -7 -7 --------- Run | Scr Mat Min Mat Min Exi Min Mat Gar Mat Fac Gar Levels Raised 15 | . . . 3 . 1 . 3 2 1 4 1 XP Earned 28702 | 6000 180 750 4196 760 350 843 3700 3914 1252 5838 919 XP Spent 25930 | . . . . 750 10650 . . 4880 2000 7650 . Upgrades 42 | . . . . 2 12 . . 23 1 4 . Power Slot 1 | . . . . . 1 . . . . . . Propulsion Slot 3 | . . . . . 3 . . . . . . Utility Slot 8 | . . . . 1 4 . . . 1 2 . Weapon Slot 2 | . . . . . 1 . . 1 . . . Core Integrity 8 | . . . . . . . . 8 . . . Heat Dissipation 10 | . . . . . . . . 10 . . . Inventory Capacity 6 | . . . . 1 3 . . . . 2 . Ranged Accuracy 4 | . . . . . . . . 4 . . . Protomatter Created 1020 | . . . . . . . 111 231 109 334 235 Integrity Restored 1581 | . . . 102 . . . . 359 141 652 327 Core 1409 | . . . 102 . . . . 271 84 625 327 Parts 172 | . . . . . . . . 88 57 27 . Protomatter Decayed 434 | . . . . . . . 58 101 60 178 37 Game ------ Seed ReflectiveScanMicroactuators Manual? 0 Play Time 01:01:19 Cumulative 338.2 hours Start 2021.10.25 @ 12:52:45 End 2021.10.26 @ 13:22:20 Sessions 3 Manual Loads 0 Difficulty Explorer Special Mode Winter2019/RPGLIKE Game No. 103 Rogue 0 Adventurer 0 Explorer 103 Win Type - Total 26 Types 15/3/1/1/1/2/1/2/0 Lore% 71 Gallery% 86 Achievement% 81 Wizard Run 0 Options --------- ASCII 1 Keyboard 0 Movement Mouse Keybinds 0 Fullscreen 2 Font 18/X11Bold Map View 76x50 Tactical HUD 1 Map Filters NONE Filters NONE Steam 1 RUN: c0a86bca-6a91-4058-b55a-d5e8eb52233b